bitfinex-derivatives/quotes_ETHF0:USTF0_20240901
["timestamp","ask_amount","ask_price","bid_price","bid_amount"]
[1725185665433,0.762,2478.0,2477.7,8.40176041]
[1725185666339,0.762,2478.0,2477.7,8.80538041]
[1725185670141,0.762,2478.0,2477.6,4.87192398]
[1725185670445,0.3527,2477.9,2477.6,4.87192398]
[1725185671030,0.40363,2477.6,2477.2,1.04621715]
[1725185671233,0.40363,2477.6,2477.2,1.1799]
[1725185671234,0.743,2477.5,2477.2,1.1799]
[1725185671433,0.743,2477.5,2477.3,0.40368]
[1725185674446,0.377,2477.5,2477.4,0.40366]
[1725185674650,0.377,2477.5,2477.3,0.40367]
[1725185675142,0.00605681,2477.6,2477.4,0.40366]
[1725185675545,0.00605681,2477.6,2477.5,0.358]
[1725185678040,0.00605681,2477.6,2477.5,0.76165]
[1725185678542,0.00605681,2477.6,2477.5,4.79765]
[1725185679941,0.00605681,2477.6,2477.5,10.14255978]
[1725185681448,0.3646,2478.1,2477.5,23.9994907]
[1725185681752,0.3646,2478.1,2477.9,0.40357]
[1725185681952,0.3646,2478.1,2478.0,0.7261]
[1725185682745,0.00605681,2478.3,2478.0,1.1046]
[1725185683155,0.40957681,2478.3,2477.8,3.61139]
[1725185683457,0.40957681,2478.3,2477.9,8.28846401]
[1725185683647,0.40957681,2478.3,2477.9,8.63986401]
[1725185684048,0.00605681,2478.3,2477.9,9.39614401]
[1725185684346,0.00605681,2478.3,2477.9,8.99256401]
[1725185684347,0.40957681,2478.3,2477.9,8.99256401]
[1725185685065,0.40957681,2478.3,2477.9,8.28846401]
[1725185685253,0.40354,2478.2,2477.9,8.28846401]
[1725185685653,0.3616,2478.1,2477.8,3.61139]
[1725185685848,0.3616,2478.1,2477.9,0.40358]
[1725185686050,0.3599,2478.0,2477.9,0.40358]
[1725185686855,0.3599,2478.0,2477.8,3.61139]
[1725185688459,0.3599,2478.0,2477.5,1.10774]
[1725185688460,0.76348,2478.0,2477.5,1.10774]
[1725185688660,0.3718,2477.9,2477.5,1.10774]
[1725185688961,0.3718,2477.9,2477.6,8.31414877]
[1725185689155,0.77538,2477.9,2477.6,8.31414877]
[1725185692354,0.77538,2477.9,2477.6,8.71777877]
[1725185693461,0.77538,2477.9,2477.6,8.31414877]
[1725185695560,0.77538,2477.9,2477.6,8.71777877]
[1725185695755,0.3718,2477.9,2477.6,8.31414877]
[1725185696268,0.7754,2477.9,2477.6,8.31414877]
[1725185697463,0.4036,2477.8,2477.6,8.31414877]
[1725185699761,0.40362,2477.7,2477.6,8.31414877]
[1725185699962,0.78702,2477.7,2477.6,8.31414877]
[1725185700160,0.40365,2477.5,2477.3,3.21385681]
[1725185700361,4.4194,2477.7,2477.3,3.21385681]
[1725185700362,0.77216,2477.4,2477.3,3.21385681]
[1725185700955,4.4053,2477.4,2477.3,3.21385681]
[1725185701162,4.80896,2477.4,2477.3,3.21385681]
[1725185701561,6.38239323,2477.4,2477.3,0.00605681]
[1725185702070,4.80896,2477.4,2477.3,0.00605681]
[1725185702967,6.90687097,2477.4,2477.3,0.00605681]
[1725185703163,4.80896,2477.4,2477.3,0.00605681]
[1725185703859,1.94042232,2477.4,2477.3,0.00605681]
[1725185704059,0.3685,2477.4,2477.3,0.00605681]
[1725185706161,1.97557232,2477.5,2477.3,0.00605681]
[1725185706356,0.3708,2477.4,2477.3,0.00605681]
[1725185707264,1.94272232,2477.4,2477.3,0.00605681]
[1725185707578,0.3708,2477.4,2477.3,0.00605681]
[1725185707872,0.3708,2477.4,2477.3,0.38715681]
[1725185708365,1.94272232,2477.4,2477.3,0.38715681]
[1725185708556,1.57192232,2477.5,2477.3,0.38715681]
[1725185708970,1.57192232,2477.5,2477.4,0.741]
[1725185709672,3.25004097,2477.6,2477.4,0.741]
[1725185710169,3.25004097,2477.6,2477.3,0.38715681]
[1725185710369,1.57174217,2477.4,2477.3,0.00605681]
[1725185712668,5.60854217,2477.4,2477.3,0.00605681]
[1725185714073,4.0368,2477.4,2477.3,0.00605681]
[1725185714275,5.60854217,2477.4,2477.3,0.00605681]
[1725185715066,1.57174217,2477.5,2477.3,0.00605681]
[1725185715666,1.57174217,2477.5,2477.4,0.40366]
[1725185715874,5.84811527,2477.8,2477.3,4.04285681]
[1725185715875,4.79437877,2477.8,2477.3,4.04285681]
[1725185716074,4.79437877,2477.8,2477.7,0.40362]
[1725185716375,4.79437877,2477.8,2477.6,0.40362]
[1725185716581,4.79437877,2477.8,2477.7,1.0883]
[1725185716877,1.57174217,2477.8,2477.7,1.0883]
[1725185717075,0.40363,2477.7,2477.3,0.00605681]
[1725185717274,1.57220375,2477.6,2477.3,0.40972681]
[1725185717482,1.57220375,2477.6,2477.4,8.53781141]
[1725185719079,1.97583375,2477.6,2477.4,8.53781141]
[1725185720492,1.57220375,2477.6,2477.4,8.53781141]
[1725185722373,1.97583375,2477.6,2477.4,8.53781141]
[1725185722978,1.57220375,2477.5,2477.3,0.00605681]
[1725185723372,1.57220375,2477.5,2477.3,0.40973681]
[1725185723778,1.97583375,2477.6,2477.3,0.00605681]
[1725185724170,1.57220375,2477.5,2477.3,0.00605681]
[1725185724370,1.97586375,2477.5,2477.3,0.00605681]
[1725185724777,0.40366,2477.4,2477.3,0.00605681]
[1725185724980,5.60900375,2477.5,2477.3,0.00605681]
[1725185724981,6.01266375,2477.5,2477.3,0.00605681]
[1725185725176,0.40366,2477.4,2477.3,0.00605681]
[1725185725382,1.97586375,2477.4,2477.3,0.00605681]
[1725185725580,6.01266375,2477.4,2477.3,0.00605681]
[1725185726376,4.44046,2477.4,2477.3,0.00605681]
[1725185726770,6.01360819,2477.4,2477.3,0.00605681]
[1725185728275,4.44046,2477.4,2477.3,0.00605681]
[1725185728865,6.01364376,2477.4,2477.3,0.00605681]
[1725185729269,4.44046,2477.4,2477.3,0.00605681]
[1725185730470,6.53837097,2477.4,2477.3,0.00605681]
[1725185730780,4.44046,2477.4,2477.3,0.00605681]
[1725185731285,6.53807662,2477.4,2477.3,0.00605681]
[1725185731782,4.44046,2477.4,2477.3,0.00605681]
[1725185732580,6.53838416,2477.4,2477.3,0.00605681]
[1725185732777,6.53837957,2477.4,2477.3,0.00605681]
[1725185733082,6.53839264,2477.4,2477.3,0.00605681]
[1725185733973,4.44046,2477.4,2477.3,0.00605681]
[1725185735277,7.06593867,2477.4,2477.3,0.00605681]
[1725185741885,8.07510867,2477.4,2477.3,0.00605681]
[1725185742091,8.07510867,2477.4,2476.7,0.76347]
[1725185742092,0.40374,2477.0,2476.7,0.76347]
[1725185742291,1.97767273,2476.8,2476.7,0.3597]
[1725185742981,0.40378,2476.7,2476.6,3.592]
[1725185743294,1.97789401,2476.7,2476.6,3.592]
[1725185743497,1.57411401,2476.7,2476.6,3.592]
[1725185743787,0.40377,2476.8,2476.6,3.592]
[1725185743788,1.57411401,2476.8,2476.7,0.40378]
[1725185743990,2.6292447,2477.0,2476.7,0.40378]
[1725185743991,0.00605681,2477.0,2476.9,0.40375]
[1725185744684,1.58047733,2477.0,2476.9,0.75845]
[1725185751201,6.54594712,2477.0,2476.8,0.3522]
[1725185751386,0.3886,2476.9,2476.8,0.3522]
[1725185752195,1.96281428,2476.9,2476.8,0.3522]
[1725185752388,0.3886,2476.9,2476.8,0.3522]
[1725185752789,1.96269223,2476.9,2476.8,0.3522]
[1725185752991,0.3886,2476.9,2476.8,0.3522]
[1725185753298,1.57396062,2476.9,2476.8,0.75596]
[1725185753989,1.57396062,2476.9,2476.8,0.3522]
[1725185754488,1.57396062,2476.9,2476.6,0.7419]
[1725185754685,1.57396062,2476.9,2476.8,0.40376]
[1725185755093,1.57396062,2476.9,2476.8,4.44136]
[1725185755291,1.58001743,2477.0,2476.8,4.44136]
[1725185755496,1.58001743,2477.0,2476.8,0.40376]
[1725185756700,1.58001743,2477.0,2476.7,0.76207]
[1725185757001,1.57396062,2476.9,2476.7,0.3583]
[1725185757589,0.00605681,2477.0,2476.9,0.40375]
[1725185757590,1.58001743,2477.0,2476.9,0.40375]
[1725185758102,0.00605681,2477.0,2476.9,0.40375]
[1725185760602,0.00605681,2477.0,2476.9,4.44135]
[1725185762004,0.00605681,2477.0,2476.9,4.0376]
[1725185762396,1.58001743,2477.0,2476.9,4.0376]
[1725185762590,1.58001743,2477.0,2476.9,4.3891]
[1725185762896,1.58001743,2477.0,2476.9,0.3515]
[1725185763111,1.58001743,2477.0,2476.7,0.3583]
[1725185763294,1.57429095,2476.9,2476.7,0.7098]
[1725185763703,0.3588,2476.8,2476.7,0.7098]
[1725185764304,1.93309095,2476.8,2476.6,0.3577]
[1725185764500,1.93309095,2476.8,2476.6,0.7092]
[1725185766909,2.33686095,2476.8,2476.5,0.3606]
[1725185767404,0.7071,2476.7,2476.5,0.3606]
[1725185768002,1.57429095,2476.6,2476.4,1.14573]
[1725185768193,1.57429095,2476.6,2476.4,1.52273]
[1725185768803,1.57429095,2476.6,2476.4,1.1189]
[1725185769105,1.57429095,2476.5,2476.4,1.52273]
[1725185769507,1.57429095,2476.6,2476.4,5.1573]
[1725185769707,1.57429095,2476.6,2476.4,1.1189]
[1725185770206,1.57429095,2476.5,2476.3,3.2078]
[1725185770707,0.3792,2476.4,2476.3,3.2078]
[1725185770917,0.3792,2476.4,2476.3,3.61164]
[1725185771094,0.3792,2476.4,2476.3,12.16132799]
[1725185771911,0.3792,2476.4,2476.3,8.95352799]
[1725185772111,0.3792,2476.4,2476.3,12.16132799]
[1725185773006,1.57429095,2476.5,2476.3,12.16132799]
[1725185773007,1.57429095,2476.6,2476.4,0.40383]
[1725185773306,1.57429095,2476.6,2476.5,0.7225]
[1725185773708,1.57429095,2476.6,2476.5,1.12631]
[1725185773903,2.67059095,2476.7,2476.5,1.12631]
[1725185774811,1.57429095,2476.7,2476.6,0.40379]
[1725185775209,1.57429095,2476.7,2476.6,4.44139]
[1725185775508,2.45405031,2476.9,2476.7,0.40378]
[1725185775509,1.57429095,2476.8,2476.7,0.40378]
[1725185776013,1.57429095,2476.9,2476.8,0.40376]
[1725185776206,1.57429095,2476.9,2476.8,4.44136]
[1725185776407,0.00605681,2477.0,2476.9,0.40375]
[1725185776408,1.58046497,2477.0,2476.9,0.40375]
[1725185776607,1.58046497,2477.0,2476.9,1.14585]
[1725185777413,0.00605681,2477.0,2476.9,1.14585]
[1725185780709,0.00605681,2477.0,2476.9,14.39125]
[1725185780911,1.57440816,2477.3,2476.9,20.72375929]
[1725185781215,1.57440816,2477.4,2477.3,0.40368]
[1725185781606,1.57440816,2477.4,2477.3,4.44048]
[1725185781818,1.95880816,2477.5,2477.4,0.40366]
[1725185782317,1.57440816,2477.6,2477.5,0.40365]
[1725185782708,1.58046497,2477.7,2477.5,0.40365]
[1725185782914,1.57440816,2477.6,2477.5,0.40365]
[1725185783417,2.32666497,2477.7,2477.5,0.40365]
[1725185785418,0.75225681,2477.7,2477.3,0.7718]
[1725185785619,0.00605681,2477.7,2477.6,3.61143]
[1725185785816,1.57440816,2478.0,2477.9,0.40358]
[1725185786117,0.3768,2478.1,2478.0,0.40357]
[1725185786118,1.57440816,2478.1,2478.0,0.40357]
[1725185786317,1.96430816,2478.2,2478.0,0.40357]
[1725185786923,1.96430816,2478.2,2477.9,0.40357]
[1725185787509,0.3899,2478.2,2477.9,0.40357]
[1725185788023,0.3899,2478.2,2477.8,0.77839]
[1725185788726,0.3899,2478.2,2477.9,0.40358]
[1725185789425,0.3899,2478.2,2478.0,0.40357]
[1725185789624,0.3899,2478.2,2478.1,0.738]
[1725185789816,0.3899,2478.2,2478.1,1.14155]
[1725185790138,0.00605681,2478.3,2478.2,0.40353]
[1725185790418,0.00605681,2478.3,2478.1,0.738]
[1725185790621,0.00605681,2478.3,2478.2,0.40353]
[1725185790823,0.00605681,2478.3,2478.1,1.14154]
[1725185791725,0.00605681,2478.3,2478.2,0.40353]
[1725185791927,0.00605681,2478.3,2478.2,3.98163]
[1725185792125,0.3842,2478.7,2478.2,13.2773446]
[1725185792419,0.3842,2478.7,2478.4,0.40349]
[1725185793216,0.3842,2478.7,2478.5,0.3642]
[1725185793917,0.3842,2478.7,2478.3,0.40351]
[1725185794113,3.2078,2478.6,2477.9,3.2078]
[1725185794314,0.40351,2478.4,2477.9,3.61137]
[1725185794519,0.3529,2478.3,2477.9,3.61137]
[1725185794719,0.7341,2478.3,2477.9,3.61137]
[1725185795518,0.7341,2478.3,2478.0,0.40356]
[1725185797032,0.7341,2478.3,2477.9,3.61137]
[1725185797823,0.7341,2478.3,2477.9,0.40357]
[1725185798222,0.7341,2478.3,2477.9,3.61137]
[1725185798829,0.7341,2478.3,2477.9,0.40357]
[1725185799031,0.7341,2478.3,2477.9,3.61137]
[1725185800320,0.7341,2478.3,2477.9,3.2078]
[1725185800524,0.7341,2478.3,2478.1,0.40354]
[1725185800833,0.7341,2478.3,2477.9,3.2078]
[1725185800834,0.7341,2478.3,2478.0,0.40356]
[1725185801032,0.7341,2478.3,2478.1,0.40355]
[1725185801227,0.3554,2478.5,2478.3,0.40351]
[1725185801530,0.3554,2478.5,2477.9,3.2078]
[1725185801531,0.3703,2478.4,2478.2,0.40353]
[1725185802835,0.3703,2478.4,2478.1,0.40354]
[1725185807134,0.3703,2478.4,2478.2,0.40353]
[1725185807633,0.3703,2478.4,2478.3,0.40352]
[1725185807833,0.3703,2478.4,2478.2,0.40353]
[1725185808425,0.3703,2478.4,2478.3,0.3765]
[1725185810236,0.3703,2478.4,2478.3,0.78002]
[1725185811237,0.3554,2478.5,2478.3,0.78002]
[1725185811429,0.3554,2478.5,2478.4,0.7546]
[1725185811823,0.3554,2478.5,2478.4,0.3768]
[1725185813335,0.7325,2478.6,2478.5,0.40349]
[1725185813735,0.3522,2478.6,2478.5,0.40349]
[1725185813933,0.3522,2478.6,2478.5,0.76919]
[1725185815036,0.74835681,2478.8,2478.5,0.76919]
[1725185815339,1.11535681,2478.8,2478.5,0.76919]
[1725185815930,1.11535681,2478.8,2478.6,0.40346]
[1725185817335,1.11535681,2478.8,2478.7,0.77885]
[1725185818136,0.37305681,2478.8,2478.7,0.77885]
[1725185819339,0.37305681,2478.8,2478.7,0.3754]
[1725185824259,0.00605681,2478.8,2478.7,0.77885]
[1725185829244,0.00605681,2478.8,2478.7,4.81325]
[1725185833365,0.00605681,2478.8,2478.5,0.00605681]
[1725185833366,4.04045681,2478.8,2478.5,0.00605681]
[1725185833558,0.40347,2478.6,2478.5,0.00605681]
[1725185834064,6.37897816,2478.6,2478.5,0.00605681]
[1725185834255,4.4011,2478.6,2478.5,0.00605681]
[1725185834457,5.97550816,2478.6,2478.5,0.00605681]
[1725185834658,6.37897816,2478.6,2478.5,0.00605681]
[1725185839180,4.80457,2478.6,2478.5,0.00605681]
[1725185839676,6.90312031,2478.6,2478.5,0.00605681]
[1725185840076,4.4011,2478.6,2478.5,0.00605681]
[1725185840276,4.80457,2478.6,2478.5,0.00605681]
[1725185840785,6.90312031,2478.6,2478.5,0.00605681]
[1725185841982,4.80457,2478.6,2478.5,0.00605681]
[1725185842378,6.90312031,2478.6,2478.5,0.00605681]
[1725185843494,2.86872031,2478.6,2478.5,0.00605681]
[1725185843980,2.46525031,2478.6,2478.5,0.00605681]
[1725185847381,6.90312031,2478.6,2478.5,0.00605681]
[1725185847576,14.61758,2478.6,2478.0,3.2078]
[1725185847783,1.97503401,2478.1,2477.8,0.3643]
[1725185847982,1.128,2478.0,2477.8,0.3643]
[1725185848183,2.69948401,2478.0,2477.8,0.3643]
[1725185848790,2.69948401,2478.0,2477.8,0.7679]
[1725185849187,1.128,2478.0,2477.8,0.7679]
[1725185849582,1.128,2478.0,2477.8,0.3643]
[1725185849782,1.57148401,2478.1,2477.8,0.76789]
[1725185849991,0.356,2478.0,2477.8,0.76789]
[1725185850790,2.34348401,2478.2,2477.8,3.97569]
[1725185850995,2.73248401,2478.2,2477.8,3.97569]
[1725185851996,2.73248401,2478.2,2477.8,0.76789]
[1725185852293,2.73248401,2478.2,2477.8,3.97569]
[1725185854091,2.73248401,2478.2,2477.9,0.40358]
[1725185854888,2.73248401,2478.2,2477.8,3.5721]
[1725185855088,2.73248401,2478.2,2478.0,0.40357]
[1725185855281,2.73248401,2478.2,2477.9,0.40357]
[1725185855484,1.161,2478.2,2477.8,3.97569]
[1725185856399,1.161,2478.2,2477.9,0.40358]
[1725185856895,0.389,2478.2,2477.9,0.40358]
[1725185857991,0.389,2478.2,2478.0,0.40356]
[1725185858187,1.96048401,2478.2,2477.8,3.97569]
[1725185858596,0.389,2478.2,2477.8,3.97569]
[1725185861587,1.57148401,2478.3,2477.8,3.5721]
[1725185861906,0.7731,2478.5,2477.9,13.6364488]
[1725185861907,2.71448401,2478.5,2477.9,13.6364488]
[1725185862090,3.11797401,2478.5,2478.0,0.40355]
[1725185862295,3.11797401,2478.5,2478.1,0.374]
[1725185862495,3.11797401,2478.5,2478.1,0.7614]
[1725185862800,3.11797401,2478.5,2478.2,0.3604]
[1725185864609,0.40352,2478.3,2478.2,0.3604]
[1725185864999,1.97500401,2478.4,2478.2,0.3604]
[1725185865492,1.57148401,2478.4,2478.2,0.3604]
[1725185866103,1.57148401,2478.4,2478.2,0.76393]
[1725185866405,0.3699,2478.5,2478.2,0.76393]
[1725185866406,1.94138401,2478.5,2478.2,0.76393]
[1725185872999,1.94138401,2478.5,2478.2,0.3604]
[1725185873400,2.34488401,2478.5,2478.2,0.3604]
[1725185873900,0.4035,2478.4,2478.1,0.7614]
[1725185874204,0.365,2478.3,2478.1,0.7614]
[1725185874509,1.94138401,2478.5,2478.2,0.76602]
[1725185874811,1.94138401,2478.5,2478.4,3.2078]
[1725185876499,1.94138401,2478.5,2478.2,0.76603]
[1725185876701,1.9410767,2478.5,2478.3,0.40351]
[1725185877194,1.5711767,2478.5,2478.4,0.4035]
[1725185877403,1.5711767,2478.6,2478.5,0.40349]
[1725185877598,1.5711767,2478.6,2478.5,0.76309]
[1725185878109,1.5711767,2478.7,2478.6,0.40347]
[1725185878306,1.57723351,2478.8,2478.6,0.3775]
[1725185878497,1.5711767,2478.7,2478.6,0.3775]
[1725185878904,1.5711767,2478.7,2478.6,4.4119]
[1725185879720,1.5711767,2478.7,2478.6,4.81537]
[1725185880008,1.5711767,2478.7,2478.6,4.4119]
[1725185880513,1.5711767,2478.7,2478.6,4.81537]
[1725185881012,1.57723351,2478.8,2478.6,4.81537]
[1725185881313,0.00605681,2478.8,2478.7,8.69186715]
[1725185881610,0.00605681,2478.8,2478.7,5.48406715]
[1725185881809,0.00605681,2478.8,2478.7,4.43785]
[1725185883818,0.00605681,2478.8,2478.7,0.40345]
[1725185887800,0.00605681,2478.8,2478.7,4.43785]
[1725185888113,0.00605681,2478.8,2478.7,4.78915]
[1725185888702,0.00605681,2478.8,2478.7,13.44445646]
[1725185888903,0.00605681,2478.8,2478.7,19.44445646]
[1725185889710,0.00605681,2478.8,2478.7,13.44445646]
[1725185890711,0.3744,2479.2,2478.7,18.37880548]
[1725185891018,0.3744,2479.2,2479.0,0.4034]
[1725185891418,0.3744,2479.2,2478.7,14.34440548]
[1725185891419,0.3744,2479.2,2478.9,0.40341]
[1725185891713,0.3744,2479.2,2479.0,0.4034]
[1725185892809,0.3744,2479.2,2478.7,0.3513]
[1725185892810,0.3744,2479.2,2478.9,0.40341]
[1725185893418,0.3744,2479.2,2479.0,0.4034]
[1725185897130,0.3744,2479.2,2478.8,13.59936566]
[1725185897131,0.3744,2479.2,2478.9,0.40341]
[1725185899515,0.3744,2479.2,2479.0,0.4034]
[1725185906931,0.3744,2479.2,2479.0,0.7792]
[1725185907228,0.3744,2479.2,2479.1,0.40339]
[1725185908230,0.3744,2479.2,2479.0,0.7792]
[1725185908930,0.36295681,2479.3,2479.0,0.7792]
[1725185908931,0.00605681,2479.3,2479.2,0.40337]
[1725185909131,0.00605681,2479.3,2479.2,3.61117]
[1725185912028,0.00605681,2479.3,2479.2,7.64477]
[1725185912338,0.00605681,2479.3,2479.2,12.85262164]
[1725185913734,0.00605681,2479.3,2479.2,21.38209643]
[1725185914127,0.3578,2479.7,2479.6,0.40331]
[1725185914529,0.3714,2479.8,2479.7,0.40329]
[1725185914727,0.3636,2479.9,2479.7,0.40329]
[1725185914927,0.3636,2479.9,2479.8,0.40327]
[1725185915334,0.3636,2479.9,2479.7,0.40328]
[1725185916037,0.3636,2479.9,2479.6,6.86707183]
[1725185916237,0.3636,2479.9,2479.6,5.76387183]
[1725185916432,1.93311899,2479.9,2479.6,5.76387183]
[1725185917439,1.93311899,2479.9,2479.6,5.36057183]
[1725185917733,5.60231899,2479.8,2479.3,1.14755]
[1725185917935,1.56951899,2479.8,2479.3,1.14755]
[1725185918238,1.97278899,2479.8,2479.3,1.14755]
[1725185918536,1.56951899,2479.7,2479.3,1.14755]
[1725185918839,0.7531,2479.6,2479.3,1.14755]
[1725185919033,1.1425,2479.6,2479.3,1.14755]
[1725185919337,1.1425,2479.6,2479.4,0.40334]
[1725185919533,1.1425,2479.6,2479.3,4.35535]
[1725185921938,1.1425,2479.6,2479.3,1.14755]
[1725185922130,1.1425,2479.6,2479.3,4.35535]
[1725185923535,2.71201899,2479.6,2479.3,4.35535]
[1725185924038,1.1425,2479.6,2479.3,4.35535]
[1725185925126,1.1425,2479.6,2479.4,3.2078]
[1725185926545,4.0328,2479.5,2479.2,1.05436812]
[1725185926835,1.56951899,2479.4,2479.1,3.2078]
[1725185927043,0.40339,2479.1,2479.0,0.00605681]
[1725185927346,0.40339,2479.1,2478.4,0.58590234]
[1725185927347,0.40349,2478.5,2478.4,3.79370234]
[1725185927544,0.40349,2478.5,2478.4,0.58590234]
[1725185927840,0.40354,2478.2,2477.9,3.2078]
[1725185928037,0.3895,2478.1,2477.9,3.2078]
[1725185929944,0.3895,2478.1,2477.9,3.61138]
[1725185930132,0.00605681,2478.2,2478.0,0.40356]
[1725185930635,0.00605681,2478.2,2477.9,3.61138]
[1725185931445,0.00605681,2478.2,2478.0,0.40357]
[1725185931642,0.00605681,2478.2,2477.9,3.2078]
[1725185932238,0.40356,2478.1,2477.8,0.00605681]
[1725185932446,0.7467,2478.0,2477.8,0.00605681]
[1725185933542,0.3756,2478.0,2477.8,3.21385681]
[1725185933849,0.3756,2478.0,2477.8,0.00605681]
[1725185934442,0.00605681,2478.2,2477.8,3.21385681]
[1725185934646,0.00605681,2478.2,2477.8,0.40964681]
[1725185935154,0.00605681,2478.2,2477.8,0.00605681]
[1725185936952,0.00605681,2478.2,2477.8,3.61745681]
[1725185938247,0.00605681,2478.2,2477.8,3.21385681]
[1725185938449,0.00605681,2478.2,2477.8,3.61745681]
[1725185938652,0.00605681,2478.2,2477.8,3.21385681]
[1725185939151,0.00605681,2478.2,2477.8,3.61745681]
[1725185940648,0.00605681,2478.2,2477.8,3.21385681]
[1725185940649,0.40959681,2478.2,2477.8,3.21385681]
[1725185941440,0.00605681,2478.2,2477.8,3.61745681]
[1725185942242,0.40960681,2478.2,2477.8,3.21385681]
[1725185943148,0.40960681,2478.2,2477.8,3.61745681]
[1725185943851,0.40960681,2478.2,2477.8,3.21385681]
[1725185944247,0.40960681,2478.2,2477.8,3.61745681]
[1725185944451,0.00605681,2478.2,2477.8,3.21385681]
[1725185944752,0.40357,2478.0,2477.8,3.21385681]
[1725185944944,0.3666,2477.9,2477.8,3.21385681]
[1725185946050,0.40959681,2478.2,2477.8,3.21385681]
[1725185946352,0.40358,2477.9,2477.8,0.00605681]
[1725185946746,4.43958,2477.9,2477.8,0.00605681]
[1725185947642,4.036,2477.9,2477.8,0.00605681]
[1725185947845,0.00605681,2478.2,2478.0,0.40356]
[1725185948045,0.00605681,2478.2,2477.9,1.1047]
[1725185948252,0.00605681,2478.2,2477.9,0.7511]
[1725185949242,0.40358,2477.9,2477.8,0.00605681]
[1725185949459,4.43958,2477.9,2477.8,0.00605681]
[1725185950762,0.40358,2478.0,2477.8,0.00605681]
[1725185952352,0.40356,2478.1,2477.8,0.00605681]
[1725185952554,3.21385681,2478.2,2477.8,0.00605681]
[1725185952747,3.61739681,2478.2,2477.8,0.00605681]
[1725185952951,0.40355,2478.1,2477.8,0.00605681]
[1725185953153,0.00605681,2478.2,2477.8,0.00605681]
[1725185953360,3.2226366,2478.7,2478.0,3.2078]
[1725185953548,3.2226366,2478.7,2478.4,0.4035]
[1725185953748,3.2226366,2478.7,2478.5,0.3811]
[1725185953952,3.9731,2479.0,2478.5,0.3811]
[1725185954558,0.40342,2478.9,2478.5,0.3811]
[1725185957056,0.40351,2478.4,2478.2,3.2078]
[1725185957255,0.78772,2478.3,2477.8,0.00605681]
[1725185957565,0.741,2478.3,2477.9,8.31208906]
[1725185957865,1.14452,2478.3,2477.8,0.40965681]
[1725185958066,0.741,2478.3,2477.8,0.40965681]
[1725185958374,0.40355,2478.2,2477.9,8.31208906]
[1725185958564,0.40355,2478.2,2477.8,0.00605681]
[1725185959280,1.127,2478.3,2477.8,0.40963681]
[1725185959775,1.53052,2478.3,2477.8,0.00605681]
[1725185960377,0.40354,2478.2,2477.8,0.00605681]
[1725185961371,1.53052,2478.3,2477.8,0.00605681]
[1725185962374,0.40353,2478.2,2477.8,0.00605681]
[1725185963081,1.127,2478.3,2477.8,0.00605681]
[1725185963583,0.40356,2478.1,2477.8,0.00605681]
[1725185963777,1.127,2478.3,2477.8,0.00605681]
[1725185963778,0.40357,2478.0,2477.8,0.00605681]
[1725185964180,0.40358,2477.9,2477.8,0.00605681]
[1725185964575,4.43958,2477.9,2477.8,0.00605681]
[1725185965167,4.036,2477.9,2477.8,0.00605681]
[1725185965569,4.4234,2477.9,2477.8,0.00605681]
[1725185965778,4.4234,2477.9,2477.8,0.40965681]
[1725185965779,0.3874,2477.9,2477.8,0.40965681]
[1725185965986,0.40354,2478.2,2477.8,0.00605681]
[1725185966181,0.79094,2478.2,2477.8,0.39555681]
[1725185966388,0.3874,2478.2,2477.8,0.79915681]
[1725185966583,0.3874,2478.2,2477.9,0.40358]
[1725185966975,0.3874,2478.2,2477.8,0.79914681]
[1725185967284,0.79094,2478.2,2477.8,0.39555681]
[1725185968779,0.3874,2478.2,2477.9,0.40357]
[1725185970381,0.3874,2478.2,2477.8,0.79914681]
[1725185971083,1.95798644,2478.2,2477.9,0.40358]
[1725185971879,0.3874,2478.2,2478.0,0.40356]
[1725185972280,0.3874,2478.2,2478.1,0.75845]
[1725185972281,1.57058644,2478.2,2478.1,0.75845]
[1725185972483,1.57058644,2478.3,2478.1,0.75845]
[1725185973282,1.57058644,2478.3,2478.1,0.75844]
[1725185975085,1.57058644,2478.3,2478.2,0.40353]
[1725185975286,1.57058644,2478.3,2478.1,0.75844]
[1725185975588,1.57058644,2478.3,2478.2,0.40353]
[1725185977593,1.57058644,2478.4,2478.3,0.40352]
[1725185979992,1.57058644,2478.5,2478.3,0.77392]
[1725185980996,1.57058644,2478.5,2478.4,0.4035]
[1725185981186,1.95398644,2478.6,2478.5,0.40349]
[1725185982186,1.95398644,2478.6,2478.4,0.40349]
[1725185982480,1.95398644,2478.6,2478.3,1.15411]
[1725185982684,1.95398644,2478.6,2478.3,0.77391]
[1725185983290,1.95398644,2478.6,2478.3,0.40351]
[1725185983497,1.57058644,2478.4,2478.1,0.3549]
[1725185983686,1.57058644,2478.4,2478.2,0.40352]
[1725185983885,1.57058644,2478.4,2478.3,8.71479251]
[1725185984089,1.57058644,2478.4,2478.2,9.11831251]
[1725185984289,1.57058644,2478.4,2478.2,0.40352]
[1725185984485,1.57058644,2478.4,2478.3,8.28010399]
[1725185987799,1.57058644,2478.5,2478.3,12.31530399]
[1725185987984,1.57058644,2478.5,2478.4,0.4035]
[1725185988190,0.3834,2478.6,2478.5,0.40349]
[1725185988191,1.57058644,2478.6,2478.5,0.40349]
[1725185988401,1.57058644,2478.7,2478.5,0.40348]
[1725185988600,1.57058644,2478.7,2478.6,0.3694]
[1725185988894,5.16052304,2478.8,2478.6,1.12727]
[1725185989906,1.93788644,2478.8,2478.7,0.40345]
[1725185990099,1.57058644,2478.8,2478.7,0.40345]
[1725185990306,1.57058644,2478.9,2478.8,0.40344]
[1725185990599,1.57058644,2478.9,2478.7,0.40344]
[1725185991396,1.57058644,2478.9,2478.8,0.40344]
[1725185991699,1.94394325,2479.0,2478.9,0.40342]
[1725185991892,0.37335681,2479.0,2478.9,0.40342]
[1725185992890,0.00605681,2479.0,2478.9,4.43702]
[1725185993099,0.00605681,2479.0,2478.9,12.99347036]
[1725185994694,0.00605681,2479.0,2478.9,13.39747036]
[1725185995999,0.00605681,2479.0,2478.9,12.99347036]
[1725185996200,0.00605681,2479.0,2478.9,13.39747036]
[1725185997199,0.3846,2479.4,2478.9,24.17313797]
[1725185997504,0.3858,2479.7,2479.5,0.40331]
[1725185998300,0.3858,2479.7,2479.6,0.40331]